Cogmind - Beta 11 @@@ ROGUE MODE // 2022.04.06 @ 18:18:27 Player: Red Box Result: Self-destructed Performance ------------- Evolutions (2) 1000 Regions Visited (5) 1000 Robots Destroyed (51) 255 Value Destroyed (1408) 1408 Prototype IDs (28) 560 Alien Tech Used (0) 0 Bonus (791) 791 TOTAL SCORE: 5014 Bonus ------- High Alert Combat Kills 37 Follower Combat Kills 503 Aligned with FarCom 300 Friendly Fire -49 Cogmind --------- Core Integrity 356/550 Matter 244/300 Energy 95/265 System Corruption 0% Temperature Critical (613) Movement Core (1200) Ox23 Location -8/Materials Parts ------- > --- POWER (1) -------- Improved Ion Engine > --- PROPULSION (2) --- (None) > --- UTILITY (6) ------ Cryofiber Web High-capacity Storage Unit Advanced Visual Processing Unit Particle Charger Hardened Light Armor Plating Reflective Plating > --- WEAPON (2) ------- Particle Cannon Heavy Particle Cannon > --- INVENTORY (20) --- Deuterium Engine Compact Wheel Compact Wheel Compact Wheel Armored Wheel High-capacity Storage Unit Superbattery (1500) Particle Charger Utility Shielding Improved Light Armor Plating Reflective Plating Reflective Plating Hardlight Generator Decoy Drone Bay (16/16) Particle Cannon Slug Cannon Rocket Launcher Datajack Scythe Peak State ------------ > --- POWER ------------ Improved Ion Engine > --- PROPULSION ------- Wheel Compact Wheel > --- UTILITY ---------- Cryofiber Web High-capacity Storage Unit Advanced Visual Processing Unit Particle Charger Hardened Light Armor Plating Reflective Plating > --- WEAPON ----------- Heavy Particle Cannon Slug Cannon > --- INVENTORY -------- Deuterium Engine Compact Wheel Compact Wheel Compact Wheel Armored Wheel High-capacity Storage Unit Superbattery Particle Charger Utility Shielding Improved Light Armor Plating Reflective Plating Reflective Plating Hardlight Generator Decoy Drone Bay Particle Cannon Particle Cannon Rocket Launcher Datajack Scythe [Rating: 31] Favorites ----------- Power Ion Engine Engine Ion Engine Propulsion Wheel Leg Aluminum Leg Wheel Wheel Utility Improved Heat Sink Device Improved Heat Sink Storage High-capacity Storage Unit Processor Advanced Visual Processing Unit Protection Hardened Light Armor Plating Weapon Beam Cannon Energy Gun Medium Laser Energy Cannon Beam Cannon Ballistic Gun Assault Rifle Ballistic Cannon Slug Cannon Launcher Rocket Launcher Special Weapon Mining Laser Impact Weapon Maul Slashing Weapon Katana Build | -11 -10 -10 -10 -9 -8 ------- Run | Scr Mat Min Exi Min Mat Slots Evolved 4 | . . . . . 4 Power . | . . . . . . Propulsion . | . . . . . . Utility 4 | . . . . . 4 Weapon . | . . . . . . Parts Attached 65 | 7 25 6 . 4 23 Power 6 | 1 3 . . 1 1 Engine 6 | 1 3 . . 1 1 Core . | . . . . . . Reactor . | . . . . . . Propulsion 8 | 2 5 . . . 1 Treads . | . . . . . . Leg 4 | 2 2 . . . . Wheel 4 | . 3 . . . 1 Hover . | . . . . . . Flight . | . . . . . . Utility 17 | 2 3 1 . . 11 Device 9 | 1 2 . . . 6 Storage 3 | 1 1 1 . . . Processor 1 | . . . . . 1 Hackware . | . . . . . . Protection 4 | . . . . . 4 Artifact . | . . . . . . Weapon 34 | 2 14 5 . 3 10 Energy Gun 11 | . 8 2 . 1 . Energy Cannon 9 | . . 1 . 2 6 Ballistic Gun 3 | 2 1 . . . . Ballistic Cannon 1 | . . . . . 1 Launcher 6 | . 2 2 . . 2 Special Weapon 2 | . 2 . . . . Impact Weapon 1 | . 1 . . . . Slashing Weapon 1 | . . . . . 1 Piercing Weapon . | . . . . . . Special Melee Weapon . | . . . . . . Unidentified Prototypes 1 | . . . . . 1 Parts Lost 5 | . 2 . . . 3 Power 1 | . . . . . 1 Propulsion 3 | . 1 . . . 2 Utility . | . . . . . . Weapon 1 | . 1 . . . . Highest Loss Streak 2 | . 1 . . . 2 To Critical Strikes . | . . . . . . Average Slot Usage (%) 99 | . 99 100 100 100 98 Engine 12 | . 14 14 14 14 8 Leg 3 | . 11 . . . . Wheel 21 | . 16 28 28 28 17 Device 15 | . 13 14 14 14 20 Storage 12 | . 14 14 14 14 9 Processor 2 | . . . . . 8 Protection 3 | . . . . . 15 Energy Gun 13 | . 23 20 14 8 . Energy Cannon 7 | . . 2 . 19 17 Ballistic Gun 1 | . 2 1 . . . Launcher 2 | . . 4 14 . . Naked Turns . | . . . . . . Heaviest Build 70 | 12 32 53 53 52 70 Greatest Support 26 | 20 26 26 26 26 26 Greatest Overweight (x) 3 | 3 1 2 2 1 2 Average Overweight (x) 1 | . . 1 2 1 1 Largest Inventory Capacity 20 | 8 15 20 20 20 20 Average Capacity 16 | 7 12 16 20 20 20 Most Carried 20 | 7 15 19 20 20 20 Average Carried 16 | 4 10 15 19 19 19 Final Capacity 20 | 8 15 20 20 20 20 Final Carried 20 | 7 15 19 20 20 20 Class Distribution -------------------- 82% | Mutant 17% | Scavenger-Mutant Dominant Class ---------------- Mutant | -10/Materials Mutant | -10/Mines Mutant | -10/Exiles Mutant | -9/Mines Mutant | -8/Materials Resources | -11 -10 -10 -10 -9 -8 ----------- Run | Scr Mat Min Exi Min Mat Matter Collected 1113 | 259 364 119 . 110 261 Remotely . | . . . . . . Salvage Created 1378 | 15 536 192 . 94 541 Parts 109 | 3 32 18 . 12 44 Haulers Intercepted 1 | . 1 . . . . Recyclers Shooed 3 | 1 . . . . 2 Parts Field Recycled . | . . . . . . Retrieved Matter . | . . . . . . Parts Self-Destructed . | . . . . . . Prevented . | . . . . . . Kills | -11 -10 -10 -10 -9 -8 ------- Run | Scr Mat Min Exi Min Mat Combat Hostiles Destroyed 40 | . 12 8 . 5 15 Guns 11 | . 6 5 . . . Cannons 13 | . . . . 2 11 AOE 16 | . 6 3 . 3 4 Classes Destroyed 8 | 1 3 2 . . 2 Worker 3 | . . . . . 3 Tunneler 1 | 1 . . . . . Hauler 1 | . 1 . . . . Watcher 6 | . 3 . . . 3 Swarmer 13 | . . 5 . 3 5 Grunt 22 | . 12 2 . 2 6 Sentry 3 | . . 1 . . 2 Hunter 2 | . . . . . 2 Best Kill Streak 9 | 1 3 3 . 3 9 Combat Bots Only 7 | . 3 3 . 3 7 Max Kills in Single Turn 3 | 1 3 2 . 3 2 Gunslinging . | . . . . . . Exploded 3 | . 3 2 . 3 1 Melee . | . . . . . . Uniques/NPCs Destroyed . | . . . . . . Combat | -11 -10 -10 -10 -9 -8 -------- Run | Scr Mat Min Exi Min Mat Damage Taken 1764 | . 659 186 . 45 874 Core 389 | . 108 42 . 45 194 Absorbed by Shields . | . . . . . . Redirected to Shielding 31 | . . . . . 31 Regen/Repaired (Parts) 112 | . 112 . . . . Core Remaining (%) 61 | 100 . . . 22 . Volleys Fired 128 | 9 46 17 . 4 52 Largest 2 | 2 2 2 . 2 2 Hottest 143 | 40 115 106 . 120 143 Shots Fired 235 | 18 86 27 . 7 97 Gun 115 | 18 77 20 . . . Cannon 97 | . . . . 6 91 Launcher 18 | . 4 7 . 1 6 Special 5 | . 5 . . . . Kinetic 58 | 18 32 2 . . 6 Thermal 159 | . 50 18 . 6 85 Explosive 18 | . 4 7 . 1 6 Electromagnetic . | . . . . . . Robot Hit Streak 16 | 3 16 4 . 3 6 Robot Miss Streak 5 | 3 4 3 . 1 5 Penetration Max . | . . . . . . Secondary Targets 1 | . 1 . . . . Max Gunslinging Chain 1 | . 1 . . . . Shots Hit Robots 127 | 10 54 10 . 4 49 Core Hits 88 | 3 31 14 . 5 35 Critical Kills . | . . . . . . Critical Parts Destroyed . | . . . . . . Critical Strikes . | . . . . . . Melee Attacks 6 | . 1 . . . 5 Impact 1 | . 1 . . . . Slashing 5 | . . . . . 5 Piercing . | . . . . . . Sneak Attacks . | . . . . . . Combat Hostiles . | . . . . . . Follow-up Attacks . | . . . . . . Damage Inflicted 3424 | 101 941 353 . 263 1766 Guns 890 | 101 634 155 . . . Cannons 1090 | . . . . 86 1004 Explosions 1408 | . 307 198 . 177 726 Melee 36 | . . . . . 36 Ramming . | . . . . . . Kinetic 398 | 101 226 34 . . 37 Thermal 1582 | . 408 121 . 86 967 Explosive 1408 | . 307 198 . 177 726 Electromagnetic . | . . . . . . Impact . | . . . . . . Slashing 36 | . . . . . 36 Piercing . | . . . . . . Highest Corruption . | . . . . . . Average Corruption . | . . . . . . Corruption Purged . | . . . . . . Corruption Blocked . | . . . . . . Overload Shots . | . . . . . . Overflow Damage 41 | . . 16 . . 25 Projectiles 25 | . . . . . 25 Explosions 16 | . . 16 . . . Melee . | . . . . . . Knockbacks . | . . . . . . Impact . | . . . . . . Kinetic . | . . . . . . Secondary . | . . . . . . Self-Inflicted Damage 122 | . . 87 . 35 . Shots 3 | . . 2 . 1 . Rammed . | . . . . . . Targets Rammed . | . . . . . . Kicked . | . . . . . . Crushed . | . . . . . . Highest Temperature 613 | . 93 18 . 36 613 Average Temperature 58 | . 19 7 . 16 141 Received Heat Transfer 582 | . 369 18 . 6 189 Effects 1 | . . . . . 1 Energy Bleed 1 | . . . . . 1 Siege Activations . | . . . . . . Robots Corrupted . | . . . . . . Combat Hostiles . | . . . . . . Parts Fried . | . . . . . . Impact Corruptions . | . . . . . . Robots Melted . | . . . . . . Combat Hostiles . | . . . . . . Parts Melted 3 | . 2 1 . . . Heat Transferred 3296 | . 1039 333 . 185 1739 Parts Sabotaged . | . . . . . . Parts Stolen . | . . . . . . Parts Stripped . | . . . . . . Power Chain Reactions . | . . . . . . Missiles Intercepted . | . . . . . . Alert | -11 -10 -10 -10 -9 -8 ------- Run | Scr Mat Min Exi Min Mat Peak Influence 483 | 5 243 382 . 175 483 Initial 94 | . 3 94 . . 46 Average 172 | 1 94 208 . 110 297 Maximum Alert Level 2 | . 1 1 . . 2 Low Security (%) 60 | 100 78 51 . 100 16 Level 1 30 | . 21 48 . . 52 Level 2 8 | . . . . . 30 Level 3 . | . . . . . . Level 4 . | . . . . . . Level 5 . | . . . . . . High Security . | . . . . . . Max Security . | . . . . . . Squads Dispatched 8 | . 3 1 . . 4 Investigation 3 | . 2 . . . 1 Extermination . | . . . . . . Reinforcement 4 | . 1 . . . 3 Assault 1 | . . 1 . . . Garrison . | . . . . . . Intercept . | . . . . . . Searches Triggered . | . . . . . . Construction Impeded . | . . . . . . Haulers Reinforced . | . . . . . . Active Scanning Responses . | . . . . . . Cargo Convoy Interrupts . | . . . . . . Stealth | -11 -10 -10 -10 -9 -8 --------- Run | Scr Mat Min Exi Min Mat Distress Signals 2 | . . . . . 2 Communications Jammed . | . . . . . . Distress Signals . | . . . . . . Times Spotted 79 | . 20 12 . 7 40 Peak Tracking Total 10 | . 4 3 . 3 10 Tactical Retreats 2 | . . 1 . . 1 Traps | -11 -10 -10 -10 -9 -8 ------- Run | Scr Mat Min Exi Min Mat Traps Triggered 2 | . 2 . . . . Indirectly . | . . . . . . Trap Hack Attempts . | . . . . . . Triggered . | . . . . . . Disarmed . | . . . . . . Reprogrammed . | . . . . . . Reused . | . . . . . . Traps Extracted . | . . . . . . Installed . | . . . . . . Triggered . | . . . . . . Machines | -11 -10 -10 -10 -9 -8 ---------- Run | Scr Mat Min Exi Min Mat Machines Disabled 2 | . . 1 . . 1 Max in Single Turn . | . . . . . . Machines Sabotaged . | . . . . . . Garrisons Compromised . | . . . . . . Overloaded Fab Kills . | . . . . . . Hacking | -11 -10 -10 -10 -9 -8 --------- Run | Scr Mat Min Exi Min Mat Machines Accessed 19 | . 9 1 2 . 7 Terminals 9 | . 6 . . . 3 Fabricators . | . . . . . . Repair Stations 2 | . 1 . . . 1 Recycling Units 4 | . 2 . . . 2 Scanalyzers 1 | . . . . . 1 Garrison Access . | . . . . . . Total Hacks 59 | . 32 1 5 . 21 Successful 39 | . 21 1 5 . 12 Failed 20 | . 11 . . . 9 Catastrophic . | . . . . . . Database Lockouts . | . . . . . . Manual 30 | . 17 . 1 . 12 Terminals 39 | . 25 . . . 14 Fabricators . | . . . . . . Repair Stations 7 | . 4 . . . 3 Recycling Units 6 | . 3 . . . 3 Scanalyzers 1 | . . . . . 1 Garrison Access . | . . . . . . Terminal Hacks 17 | . 6 1 5 . 5 Record 4 | . . . 4 . . Robot Analysis 2 | . . . . . 2 Prototype ID Bank 2 | . 2 . . . . Open Door 1 | . . 1 . . . Terminal Index 1 | . . . . . 1 Unreport Threat 2 | . . . . . 2 Locate Traps 2 | . 2 . . . . Recall Reinforcements 1 | . 1 . . . . Hauler Manifests 1 | . 1 . . . . EX-Prototype ID Bank 1 | . . . 1 . . Fabricator Hacks . | . . . . . . Repair Station Hacks 5 | . 4 . . . 1 Scan Component 3 | . 2 . . . 1 Repair 2 | . 2 . . . . Recycling Unit Hacks 3 | . 2 . . . 1 Retrieve Components 3 | . 2 . . . 1 Scanalyzer 1 | . . . . . 1 Insert Component 1 | . . . . . 1 Garrison Access Hacks . | . . . . . . Unauthorized Hacks 13 | . 9 . . . 4 Terminals 13 | . 9 . . . 4 Track 1 | . 1 . . . . Assimilate 2 | . 1 . . . 1 Botnet 6 | . 4 . . . 2 Disrupt 1 | . 1 . . . . Operators 3 | . 2 . . . 1 Fabricators . | . . . . . . Repair Stations . | . . . . . . Recycling Units . | . . . . . . Scanalyzers . | . . . . . . Garrison Access . | . . . . . . Data Cores Recovered . | . . . . . . Used . | . . . . . . Hacking Detections 14 | . 9 . . . 5 Full Trace Events 1 | . . . . . 1 Feedback Events . | . . . . . . Feedback Blocked . | . . . . . . Robot Schematics Acquired . | . . . . . . Robots Built . | . . . . . . Authchips . | . . . . . . Time . | . . . . . . Total Robot Build Rating . | . . . . . . Part Schematics Acquired . | . . . . . . Parts Built . | . . . . . . Authchips . | . . . . . . Time . | . . . . . . Total Part Build Rating . | . . . . . . Parts Repaired 2 | . 2 . . . . Time 64 | . 64 . . . . Parts Recycled . | . . . . . . Recycled Matter . | . . . . . . Retrieved Matter . | . . . . . . Retrieved Components 24 | . 15 . . . 9 Parts Scanalyzed . | . . . . . . Part Schematics Acquired . | . . . . . . Parts Damaged . | . . . . . . Bothacking | -11 -10 -10 -10 -9 -8 ------------ Run | Scr Mat Min Exi Min Mat Used RIF Installer . | . . . . . . Robots Hacked . | . . . . . . Non-combat . | . . . . . . Combat . | . . . . . . Robot Hacks Applied . | . . . . . . Relay Couplers Released . | . . . . . . Fabnet Peak Effective % . | . . . . . . Robots Rewired . | . . . . . . Allies Hacked . | . . . . . . Hacks Repelled . | . . . . . . Allies | -11 -10 -10 -10 -9 -8 -------- Run | Scr Mat Min Exi Min Mat Total Allies 5 | . 1 2 . 2 . Largest Group 3 | . 1 2 1 3 3 Highest-Rated Group 76 | . 10 62 31 76 76 Highest-Rated Ally 31 | . 10 31 31 31 31 Total Orders 2 | . 2 . . . . STAY 1 | . 1 . . . . FOLLOW 1 | . 1 . . . . Ally Attacks 95 | . . 7 . 15 73 Total Damage 1321 | . . 61 . 215 1045 Kills 22 | . . 2 . 5 15 Allies Corrupted 1 | . 1 . . . . Allies Melted . | . . . . . . Intel | -11 -10 -10 -10 -9 -8 ------- Run | Scr Mat Min Exi Min Mat Robot Analysis Total 2 | . . . . . 2 Derelict Logs Recovered 3 | . . 2 . 1 . Drone Launches . | . . . . . . Drone Recoveries . | . . . . . . Exploration | -11 -10 -10 -10 -9 -8 ------------- Run | Scr Mat Min Exi Min Mat Turns Passed 4100 | 118 1186 739 445 613 999 Spaces Moved 2902 | 61 845 585 368 506 537 Core 10 | 10 . . . . . Treads . | . . . . . . Legs 322 | 51 271 . . . . Wheels 2570 | . 574 585 368 506 537 Hover . | . . . . . . Flight . | . . . . . . Fastest Speed 50 | 50 95 105 120 105 105 Average Speed 110 | 124 104 107 120 105 119 Slowest Speed 200 | 200 190 120 120 105 120 Overloaded Moves . | . . . . . . Propulsion Burnouts . | . . . . . . Robots Hopped . | . . . . . . Cave-ins Triggered . | . . . . . . Exploration Rate (%) 66 | 4 98 98 60 88 51 Regions Visited 5 Branch Regions 3 Pre-discovered Areas 2 | . . 1 1 . . Known Exits Taken . | . . . . . . Unknown Exits Taken 5 | 1 1 1 1 1 . Scrap Searched 3 | . . 1 . 2 . Spaces Dug 28 | . 5 23 . . . Terrain Destroyed 167 | . 34 84 . 10 39 Melee 1 | . 1 . . . . Projectile 20 | . 5 . . . 15 AOE 146 | . 28 84 . 10 24 Terrain Rammed . | . . . . . . Walls Destroyed . | . . . . . . Machines Disabled . | . . . . . . Actions | -11 -10 -10 -10 -9 -8 --------- Run | Scr Mat Min Exi Min Mat Total 3539 | 83 1050 667 372 581 786 Wait 339 | . 90 49 2 59 139 Move 2897 | 60 844 584 367 505 537 Hop . | . . . . . . Pick Up 58 | 7 26 6 2 4 13 Fast Attach 17 | 7 2 1 . . 7 Attach 7 | . 4 . . . 3 Detach 1 | . . . . . 1 Swap 41 | . 19 5 . 4 13 Drop 45 | . 18 5 1 5 16 Fire 128 | 9 46 17 . 4 52 Melee 6 | . 1 . . . 5 Ram . | . . . . . . Kick . | . . . . . . Crush . | . . . . . . Escape Stasis . | . . . . . . Rewire . | . . . . . . Trap . | . . . . . . Miscellaneous . | . . . . . . Route ------- -11/Scrapyard -10/Materials (discovered 5 exits: [*Mat x3] / *Min x2) -10/Mines (discovered 3 exits: [*Mat x2] / *Exi) -10/Exiles -9/Mines -8/Materials History --------- Turn | Location | Event 12 | -11/Scrapyard | Discovered new exit (range 16) 119 | -11/Scrapyard | Entered Materials 271 | -10/Materials | Discovered new exit (range 13) 307 | -10/Materials | Build established: Mutant 347 | -10/Materials | Repaired Assault Rifle 503 | -10/Materials | Discovered new exit (range 4) 733 | -10/Materials | Repaired Imp. Heat Sink 811 | -10/Materials | Discovered new exit (range 9) 941 | -10/Materials | Discovered new exit (range 16) 1046 | -10/Materials | Discovered new exit (range 12) 1305 | -10/Materials | Entered Mines 1324 | -10/Mines | Discovered new exit (range 12) 1344 | -10/Mines | Joined a pair of Derelicts in attacking an 0b10 outpost 1441 | -10/Mines | Deemed a non-threat by the Exiles lab entrance 1441 | -10/Mines | Discovered new exit (range 5) 1592 | -10/Mines | Core integrity fell below 50% 1620 | -10/Mines | Received a Mining Laser from a helpful Derelict 1707 | -10/Mines | Met a Derelict testing a Signal Generator 1751 | -10/Mines | Received a Rocket Launcher from a helpful Derelict 1776 | -10/Mines | Learned Materials security intel 1926 | -10/Mines | Discovered new exit (range 6) 1954 | -10/Mines | Found the Drone Emporium 1959 | -10/Mines | Found Prototype Device 2044 | -10/Mines | Entered Exiles 2044 | -10/Exiles | Accompanied by 1 ally 2073 | -10/Exiles | Met 8R-AWN 2092 | -10/Exiles | Met EX-HEX 2131 | -10/Exiles | Met EX-BIN 2193 | -10/Exiles | Aligned with FarCom system 2194 | -10/Exiles | Given EX-Vault access code 2224 | -10/Exiles | Opened EX-Vault 2233 | -10/Exiles | Found Superbattery 2259 | -10/Exiles | Warned to stay clear of 0b10 Research branches 2303 | -10/Exiles | Met EX-DEC 2308 | -10/Exiles | Learned location of Zion (-6) 2473 | -10/Exiles | Discovered new exit (range 14) 2489 | -10/Exiles | Left Exiles lab with Superbattery 2489 | -10/Exiles | Entered Mines 2489 | -9/Mines | Accompanied by 1 ally 2588 | -9/Mines | Found a damaged Exp. Sensor Array with a note attached 2718 | -9/Mines | Learned Materials trap positions 2750 | -9/Mines | A weapon hastily lodged in a ceiling crevice suddenly fell to the ground 2950 | -9/Mines | Discovered new exit (range 12) 3102 | -9/Mines | Entered Materials 3102 | -8/Materials | Accompanied by 3 allies 3102 | -8/Materials | Evolved 4 slots: Utility x4 3102 | -8/Materials | Identified Decoy Drone Bay 3103 | -8/Materials | Loaded intel: 20 trap records 3107 | -8/Materials | Led the pair of lost Derelicts to an unsafe place 3400 | -8/Materials | Destroyed 7 combat bots 4101 | -8/Materials | Self-destructed Last Messages --------------- 03855_ R-06 Scavenger collects Visual Processing Unit. 03858_ Y-45 Defender destroyed. 03870_ R-06 Scavenger collects Beam Rifle. 03934_ K-01 Serf destroyed. 03942_ Dropped Beam Cannon. 03944_ Acquired Datajack. 04002_ R-06 Scavenger collects Beam Cannon. 04063_ K-01 Serf destroyed. 04066_ U-05 Engineer builds a Wall. 04086_ Destroyed Flight Unit. 04088_ U-05 Engineer builds a Wall. 04092_ S-10 Pest destroyed. 04093_ Overheating: Energy bleed (-36). 04093_ Wheel destroyed. 04096_ U-05 Engineer builds a Wall. 04097_ Power failure averted by Cryofiber Web. 04098_ U-05 Engineer builds a Wall. 04098_ S-10 Pest destroyed. 04100_ U-05 Engineer builds a Wall. 04101_ Com. Wheel destroyed. Map ----- +----------------------------------------------------+ | #???????????????????????????????????????????????? | | #???????????????????????????????????????????????? | | #???????????????????????????????????????????????? | | #???????????????????????????????????????????????? | | #??????????????????? ?????????????????????????? | | #?????????????????? ?????????????????????????? | | #?????????????????? ?????????????????????????? | | #??????????????????# ?????????????????????????? | | #??????????????????# ?????????????????????????? | | #######?????????????# #????????????????????????? | | / #?????????????+ #????????????????????????? | | #?????????????# #????????????????????????? | | ""!= #?????????????# ????????????????????????? | | "T #?????????????# #????????????????????????? | | "" #?????????????# #??#+????????????????????? | | [#???????#####?# #??# ????????????????????? | | #######???????? # ##?# ????????????????????? | | ? "" #????????? # #### ###?????????????????? | | ""S #?????????? # #?????????????????? | | "" #???????????" + +?????????????????? | | #???????????? # ! #?????????????????? | | #?????????????# %######+#?????????????????? | | #?????????????# *# s #?????????????????? | | ?######?????????????# # """#?????Y???????????? | | ????????????????????# # """#?????????????????? | | ??????????########### #@ """#?????????????????? | | ?????+ us%[ """#?????????????????? | | ??????????########### [%* """#?????????????????? | | ??????##########???## #u #?????????????????? | | ??????# #????# #u """#?????????????????? | | ####### """#????# # """#?????????????????? | | # """#????# # """#?????????????????? | | # """#????# # """#?????????????????? | | # #????# #u """#?????????????????? | | "" # ! """#????# # #?????????????????? | | S"" # """#????# ########?????????????????? | | "" # = """#????# # ???????????????????????? | | ####### #????# ##???????????????????????? | | ###########+######### #????????????????????????? | | ## ## #????????????????????????? | | ## + #????????????????????????? | | ## ## #????????????????????????? | | ######### ## !## #????????????????????????? | | ######### ## ## #????????????????????????? | | ## # = ## #??########??????????????? | | [! ## ##=% ## #?? #??????????????? | | [! ## ###+### #?""" """ #??????????????? | | [ """##^ ^ * #?"T" """ #??????????????? | | R"##^ % # """ #??????????????? | | """## ^ # #??????????????? | +----------------------------------------------------+ Best States ------------- Heat Dissipation 59 Energy Generation 12 Energy Capacity 265 Matter Stores 300 Matter Capacity 300 Sight Range 20 Terrain Scan Range 16 Terrain Scan Density 10 Base Temperature (-) 100 Armor Coverage 300 Resistance: TH 10 Weapon Shielding 33 Evasion (%) 55 Particle Charging 15 Item Schematics ----------------- None Robot Schematics ------------------ None Fabricated ------------ Nothing Alien Tech Used ----------------- None Achievements -------------- None Challenges ------------ None Game ------ Seed FieldGravitonEngine Manual? 0 Play Time 00:54:38 Cumulative 247.5 hours Start 2022.04.06 @ 16:44:51 End 2022.04.06 @ 18:18:27 Sessions 1 Manual Loads 0 Difficulty Rogue Special Mode None Game No. 212 Rogue 212 Adventurer 0 Explorer 0 Win Type - Total 0 Types 0/0/0/0/0/0/0/0/0 Lore% 48 Gallery% 54 Achievement% 39 Wizard Run 0 Options --------- ASCII 0 Keyboard 0 Movement Mouse Keybinds 0 Fullscreen 1 Font 16/SmallcapsGlow Map View 75x55 Tactical HUD 1 Map Filters NONE Filters NONE Steam 1 RUN: 938363e7-8a2b-4f86-aa74-3288da32f018